fUSD/lending_fUSD_20241221
["ID","MTS","AMOUNT","RATE_DAILY","PERIOD"]
[346186972,1734769842994,-500.0,0.00019344,2]
[346186973,1734769843003,-500.0,0.00019344,2]
[346186974,1734769843013,-500.0,0.00019344,2]
[346186975,1734769843022,-502.18336447,0.00019344,2]
[346186976,1734769843032,-500.0,0.00019344,2]
[346186977,1734769843047,-500.0,0.00019344,2]
[346186978,1734769843057,-500.0,0.00019344,2]
[346186979,1734769843066,-500.0,0.00019344,2]
[346186980,1734769843075,-501.86878256,0.00019344,2]
[346186981,1734769843086,-500.0,0.00019344,2]
[346186982,1734769843095,-500.0,0.00019344,2]
[346186983,1734769843105,-500.0,0.00019344,2]
[346186984,1734769843116,-500.0,0.00019344,2]
[346186985,1734769843125,-500.0,0.00019344,2]
[346186986,1734769843135,-615.53,0.00019344,2]
[346186988,1734769843144,-500.0,0.00019344,2]
[346186989,1734769843153,-500.0,0.00019344,2]
[346186990,1734769843163,-500.0,0.00019344,2]
[346186992,1734769843172,-500.0,0.00019344,2]
[346186993,1734769843181,-500.0,0.00019344,2]
[346186995,1734769843191,-500.0,0.00019344,2]
[346186996,1734769843200,-500.0,0.00019344,2]
[346186998,1734769843210,-500.0,0.00019344,2]
[346187001,1734769843222,-500.0,0.00019344,2]
[346187002,1734769843231,-500.0,0.00019344,2]
[346187003,1734769843242,-500.0,0.00019344,2]
[346187004,1734769843251,-500.0,0.00019344,2]
[346187005,1734769843261,-500.0,0.00019344,2]
[346187006,1734769843271,-500.0,0.00019344,2]
[346187007,1734769843280,-500.0,0.00019344,2]
[346187008,1734769843289,-150.59794,0.00019344,2]
[346187009,1734769843299,-500.0,0.00019344,2]
[346187010,1734769843309,-157.346594,0.00019344,2]
[346187011,1734769843319,-500.0,0.00019344,2]
[346187012,1734769843329,-500.0,0.00019344,2]
[346187013,1734769843339,-500.0,0.00019344,2]
[346187014,1734769843348,-501.96834836,0.00019344,2]
[346187015,1734769843358,-500.0,0.00019344,2]
[346187016,1734769843367,-500.0,0.00019344,2]
[346187017,1734769843376,-500.0,0.00019344,2]
[346187018,1734769843386,-500.0,0.00019344,2]
[346187019,1734769843396,-500.0,0.00019344,2]
[346187020,1734769843405,-376.25827547,0.00019344,2]
[346187021,1734769843414,-500.0,0.00019344,2]
[346187022,1734769843424,-500.0,0.00019344,2]
[346187023,1734769843433,-500.0,0.00019344,2]
[346187024,1734769843443,-500.0,0.00019344,2]
[346187025,1734769843452,-500.0,0.00019344,2]
[346187026,1734769843462,-500.0,0.00019344,2]
[346187027,1734769843471,-500.0,0.00019344,2]
[346187028,1734769843481,-500.0,0.00019344,2]
[346187029,1734769843491,-500.0,0.00019344,2]
[346187030,1734769843501,-500.0,0.00019344,2]
[346187031,1734769843511,-503.11966836,0.00019344,2]
[346187032,1734769843520,-500.0,0.00019344,2]
[346187033,1734769843530,-500.0,0.00019344,2]
[346187034,1734769843539,-500.0,0.00019344,2]
[346187035,1734769843548,-500.0,0.00019344,2]
[346187036,1734769843558,-596.19,0.00019344,2]
[346187037,1734769843568,-500.0,0.00019344,2]
[346187038,1734769843577,-500.86603364,0.00019344,2]
[346187039,1734769843587,-500.0,0.00019344,2]
[346187040,1734769843596,-500.0,0.00019344,2]
[346187041,1734769843606,-500.0,0.00019344,2]
[346187042,1734769843616,-500.0,0.00019344,2]
[346187043,1734769843626,-500.0,0.00019344,2]
[346187044,1734769843636,-500.0,0.00019344,2]
[346187045,1734769843646,-506.44141979,0.00019344,2]
[346187046,1734769843655,-500.0,0.00019344,2]
[346187047,1734769843665,-500.0,0.00019344,2]
[346187048,1734769843674,-500.0,0.00019344,2]
[346187049,1734769843684,-502.84118656,0.00019344,2]
[346187050,1734769843693,-500.0,0.00019344,2]
[346187051,1734769843703,-500.0,0.00019344,2]
[346187052,1734769843713,-500.0,0.00019344,2]
[346187054,1734769843722,-500.0,0.00019344,2]
[346187055,1734769843732,-500.0,0.00019344,2]
[346187056,1734769843741,-500.0,0.00019344,2]
[346187057,1734769843751,-500.0,0.00019344,2]
[346187058,1734769843760,-500.0,0.00019344,2]
[346187059,1734769843769,-500.0,0.00019344,2]
[346187061,1734769843778,-332.13284912,0.00019344,2]
[346187063,1734769843787,-500.0,0.00019344,2]
[346187064,1734769843797,-500.0,0.00019344,2]
[346187065,1734769843806,-500.0,0.00019344,2]
[346187066,1734769843815,-504.91169525,0.00019344,2]
[346187067,1734769843824,-448.30484462,0.00019344,2]
[346187068,1734769843834,-500.0,0.00019344,2]
[346187069,1734769843843,-500.0,0.00019344,2]
[346187070,1734769843853,-500.0,0.00019344,2]
[346187071,1734769843862,-500.0,0.00019344,2]
[346187072,1734769843872,-504.60710073,0.00019344,2]
[346187073,1734769843881,-500.0,0.00019344,2]
[346187074,1734769843890,-500.0,0.00019344,2]
[346187075,1734769843900,-252.7717364,0.00019344,2]
[346187076,1734769843909,-500.0,0.00019344,2]
[346187077,1734769843919,-500.0,0.00019344,2]
[346187078,1734769843929,-500.0,0.00019344,2]
[346187079,1734769843939,-500.0,0.00019344,2]
[346187080,1734769843948,-500.0,0.00019344,2]
[346187081,1734769843958,-500.0,0.00019344,2]
[346187082,1734769843968,-500.0,0.00019344,2]
[346187083,1734769843978,-500.0,0.00019344,2]
[346187084,1734769843989,-500.0,0.00019344,2]
[346187085,1734769843999,-500.0,0.00019344,2]
[346187086,1734769844008,-500.0,0.00019344,2]
[346187087,1734769844017,-500.0,0.00019344,2]
[346187088,1734769844027,-500.0,0.00019344,2]
[346187089,1734769844039,-500.0,0.00019344,2]
[346187090,1734769844050,-500.0,0.00019344,2]
[346187091,1734769844060,-500.0,0.00019344,2]
[346187092,1734769844069,-500.0,0.00019344,2]
[346187093,1734769844080,-500.0,0.00019344,2]
[346187094,1734769844090,-500.0,0.00019344,2]
[346187095,1734769844100,-504.72485676,0.00019344,2]
[346187096,1734769844111,-500.0,0.00019344,2]
[346187097,1734769844121,-500.0,0.00019344,2]
[346187098,1734769844131,-500.0,0.00019344,2]
[346187099,1734769844140,-500.0,0.00019344,2]
[346187100,1734769844150,-500.0,0.00019344,2]
[346187101,1734769844159,-500.0,0.00019344,2]
[346187102,1734769844169,-500.0,0.00019344,2]
[346187103,1734769844178,-500.0,0.00019344,2]
[346187104,1734769844188,-500.0,0.00019344,2]
[346187105,1734769844198,-500.0,0.00019344,2]
[346187106,1734769844208,-500.0,0.00019344,2]
[346187107,1734769844217,-500.0,0.00019344,2]
[346187108,1734769844227,-500.0,0.00019344,2]
[346187109,1734769844237,-500.0,0.00019344,2]
[346187110,1734769844246,-500.0,0.00019344,2]
[346187111,1734769844256,-500.0,0.00019344,2]
[346187112,1734769844265,-500.0,0.00019344,2]
[346187113,1734769844275,-500.0,0.00019344,2]
[346187114,1734769844285,-500.0,0.00019344,2]
[346187115,1734769844295,-500.0,0.00019344,2]
[346187116,1734769844304,-500.0,0.00019344,2]
[346187117,1734769844313,-500.0,0.00019344,2]
[346187118,1734769844323,-414.43030538,0.00019344,2]
[346187119,1734769844332,-507.38265705,0.00019344,2]
[346187120,1734769844342,-500.0,0.00019344,2]
[346187121,1734769844351,-500.0,0.00019344,2]
[346187122,1734769844361,-500.0,0.00019344,2]
[346187123,1734769844370,-500.0,0.00019344,2]
[346187124,1734769844379,-560.41,0.00019344,2]
[346187125,1734769844389,-281.9312052,0.00019344,2]
[346187126,1734769844399,-500.0,0.00019344,2]
[346187127,1734769844408,-500.0,0.00019344,2]
[346187128,1734769844418,-500.0,0.00019344,2]
[346187129,1734769844428,-500.0,0.00019344,2]
[346187130,1734769844437,-500.0,0.00019344,2]
[346187131,1734769844447,-500.0,0.00019344,2]
[346187132,1734769844459,-500.0,0.00019344,2]
[346187133,1734769844529,-503.99505382,0.00019344,2]
[346187134,1734769844538,-500.0,0.00019344,2]
[346187135,1734769844547,-500.0,0.00019344,2]
[346187136,1734769844557,-501.06171219,0.00019344,2]
[346187137,1734769844566,-500.0,0.00019344,2]
[346187138,1734769844575,-504.89994903,0.00019344,2]
[346187139,1734769844585,-500.0,0.00019344,2]
[346187140,1734769844594,-500.0,0.00019344,2]
[346187141,1734769844603,-500.0,0.00019344,2]
[346187142,1734769844612,-500.0,0.00019344,2]
[346187143,1734769844622,-500.0,0.00019344,2]
[346187144,1734769844631,-500.0,0.00019344,2]
[346187145,1734769844641,-500.0,0.00019344,2]
[346187146,1734769844650,-509.11681214,0.00019344,2]
[346187147,1734769844659,-500.0,0.00019344,2]
[346187148,1734769844668,-3368.5331142,0.00019344,2]
[346187149,1734769844678,-583.9,0.00019344,2]
[346187150,1734769844687,-500.0,0.00019344,2]
[346187151,1734769844696,-481.25980462,0.00019344,2]
[346187152,1734769844706,-500.0,0.00019344,2]
[346187153,1734769844715,-500.0,0.00019344,2]
[346187154,1734769844724,-500.0,0.00019344,2]
[346187155,1734769844734,-500.0,0.00019344,2]
[346187156,1734769844743,-500.0,0.00019344,2]
[346187157,1734769844753,-500.0,0.00019344,2]
[346187158,1734769844762,-500.0,0.00019344,2]
[346187159,1734769844771,-500.0,0.00019344,2]
[346187160,1734769844780,-500.0,0.00019344,2]
[346187161,1734769844790,-425.93029469,0.00019344,2]
[346187162,1734769844799,-500.0,0.00019344,2]
[346187163,1734769844808,-500.0,0.00019344,2]
[346187164,1734769844818,-500.0,0.00019344,2]
[346187165,1734769844827,-500.0,0.00019344,2]
[346187166,1734769844837,-500.0,0.00019344,2]
[346187167,1734769844846,-500.0,0.00019344,2]
[346187168,1734769844856,-500.0,0.00019344,2]
[346187169,1734769844865,-500.0,0.00019344,2]
[346187170,1734769844874,-500.0,0.00019344,2]
[346187171,1734769844883,-500.0,0.00019344,2]
[346187172,1734769844893,-503.41674595,0.00019344,2]
[346187173,1734769844902,-502.3442337,0.00019344,2]
[346187174,1734769844911,-500.0,0.00019344,2]
[346187175,1734769844920,-500.0,0.00019344,2]
[346187176,1734769844929,-502.2189627,0.00019344,2]
[346187177,1734769844939,-500.0,0.00019344,2]
[346187178,1734769844948,-500.0,0.00019344,2]
[346187179,1734769844957,-500.0,0.00019344,2]
[346187180,1734769844966,-500.0,0.00019344,2]
[346187181,1734769844977,-500.0,0.00019344,2]
[346187182,1734769844987,-500.0,0.00019344,2]
[346187183,1734769844997,-500.0,0.00019344,2]
[346187184,1734769845006,-500.0,0.00019344,2]
[346187185,1734769845016,-997.17,0.00019344,2]
[346187186,1734769845026,-500.0,0.00019344,2]
[346187187,1734769845039,-500.0,0.00019344,2]
[346187188,1734769845049,-500.0,0.00019344,2]
[346187189,1734769845058,-405.68014661,0.00019344,2]
[346187190,1734769845067,-500.0,0.00019344,2]
[346187191,1734769845078,-503.05666132,0.00019344,2]
[346187192,1734769845088,-500.0,0.00019344,2]
[346187193,1734769845098,-500.0,0.00019344,2]
[346187194,1734769845107,-500.0,0.00019344,2]
[346187195,1734769845118,-685.72,0.00019344,2]
[346187196,1734769845128,-500.0,0.00019344,2]
[346187197,1734769845137,-500.0,0.00019344,2]
[346187198,1734769845146,-500.0,0.00019344,2]
[346187199,1734769845156,-227.84085181,0.00019344,2]
[346187200,1734769845166,-500.0,0.00019344,2]
[346187201,1734769845175,-500.54136149,0.00019344,2]
[346187202,1734769845185,-500.0,0.00019344,2]
[346187203,1734769845194,-500.0,0.00019344,2]
[346187204,1734769845203,-706.79,0.00019344,2]
[346187205,1734769845212,-500.0,0.00019344,2]
[346187206,1734769845221,-501.05214593,0.00019344,2]
[346187207,1734769845230,-500.0,0.00019344,2]
[346187208,1734769845240,-500.0,0.00019344,2]
[346187209,1734769845249,-500.0,0.00019344,2]
[346187210,1734769845259,-500.0,0.00019344,2]
[346187211,1734769845268,-1349.74,0.00019344,2]
[346187212,1734769845278,-500.0,0.00019344,2]
[346187213,1734769845287,-500.0,0.00019344,2]
[346187214,1734769845296,-500.0,0.00019344,2]
[346187215,1734769845305,-1612.89,0.00019344,2]
[346187216,1734769845315,-500.0,0.00019344,2]
[346187217,1734769845324,-500.0,0.00019344,2]
[346187218,1734769845333,-500.0,0.00019344,2]
[346187219,1734769845344,-500.0,0.00019344,2]
[346187220,1734769845353,-2066.3,0.00019344,2]
[346187221,1734769845364,-500.0,0.00019344,2]
[346187222,1734769845373,-500.0,0.00019344,2]
[346187223,1734769845382,-500.0,0.00019344,2]
[346187224,1734769845391,-500.0,0.00019344,2]
[346187225,1734769845400,-500.0,0.00019344,2]
[346187226,1734769845411,-500.0,0.00019344,2]
[346187227,1734769845420,-500.0,0.00019344,2]
[346187228,1734769845430,-615.9,0.00019344,2]
[346187229,1734769845439,-1184.33,0.00019344,2]
[346187230,1734769845450,-606.13413441,0.00019344,2]
[346187231,1734769845459,-500.0,0.00019344,2]
[346187232,1734769845469,-500.0,0.00019344,2]
[346187233,1734769845478,-500.0,0.00019344,2]
[346187234,1734769845488,-2103.98,0.00019344,2]
[346187235,1734769845498,-500.0,0.00019344,2]
[346187236,1734769845508,-1834.81,0.00019344,2]
[346187237,1734769845518,-500.0,0.00019344,2]
[346187238,1734769845527,-500.0,0.00019344,2]
[346187239,1734769845536,-500.0,0.00019344,2]
[346187240,1734769845546,-4676.27,0.00019344,2]
[346187241,1734769845555,-500.0,0.00019344,2]
[346187242,1734769845564,-500.0,0.00019344,2]
[346187243,1734769845573,-500.0,0.00019344,2]
[346187244,1734769845583,-500.0,0.00019344,2]
[346187245,1734769845592,-500.0,0.00019344,2]
[346187246,1734769845602,-3208.63,0.00019344,2]
[346187247,1734769845611,-500.0,0.00019344,2]
[346187248,1734769845620,-500.0,0.00019344,2]
[346187249,1734769845630,-500.0,0.00019344,2]
[346187250,1734769845639,-500.0,0.00019344,2]
[346187251,1734769845648,-500.0,0.00019344,2]
[346187252,1734769845657,-500.0,0.00019344,2]
[346187253,1734769845667,-500.0,0.00019344,2]
[346187254,1734769845676,-500.0,0.00019344,2]
[346187255,1734769845684,-500.0,0.00019344,2]
[346187256,1734769845694,-2622.64,0.00019344,2]
[346187257,1734769845703,-729.95,0.00019344,2]
[346187258,1734769845713,-500.0,0.00019344,2]
[346187259,1734769845723,-1522.05,0.00019344,2]
[346187260,1734769845732,-500.0,0.00019344,2]
[346187261,1734769845743,-500.0,0.00019344,2]
[346187262,1734769845753,-500.0,0.00019344,2]
[346187263,1734769845762,-504.22121051,0.00019344,2]
[346187264,1734769845772,-500.0,0.00019344,2]
[346187265,1734769845781,-500.0,0.00019344,2]
[346187266,1734769845790,-614.58169455,0.00019344,2]
[346187267,1734769845800,-502.45810384,0.00019344,2]
[346187268,1734769845810,-500.0,0.00019344,2]
[346187269,1734769845820,-500.0,0.00019344,2]
[346187270,1734769845829,-5000.0,0.00019344,10]
[346187271,1734769845839,-872.79,0.00019344,2]
[346187272,1734769845848,-500.0,0.00019344,2]
[346187273,1734769845858,-500.0,0.00019344,2]
[346187274,1734769845868,-500.0,0.00019344,2]
[346187275,1734769845878,-500.0,0.00019344,2]
[346187276,1734769845887,-554.69,0.00019344,2]
[346187277,1734769845897,-500.0,0.00019344,2]
[346187278,1734769845906,-500.0,0.00019344,2]
[346187279,1734769845916,-1740.06,0.00019344,2]
[346187280,1734769845926,-500.0,0.00019344,2]
[346187281,1734769845935,-500.0,0.00019344,2]
[346187282,1734769845945,-500.0,0.00019344,2]
[346187283,1734769845954,-500.0,0.00019344,2]
[346187284,1734769845963,-500.0,0.00019344,2]
[346187285,1734769845973,-8313.36,0.00019344,2]
[346187286,1734769845982,-500.0,0.00019344,2]
[346187287,1734769845992,-213.99817863,0.00019344,2]
[346187288,1734769846001,-500.0,0.00019344,2]
[346187289,1734769846010,-500.0,0.00019345,2]
[346187290,1734769846019,-500.0,0.00019345,2]
[346187291,1734769846029,-500.0,0.00019345,2]
[346187292,1734769846044,-500.0,0.00019345,2]
[346187293,1734769846053,-500.0,0.00019345,2]
[346187294,1734769846063,-500.0,0.00019345,2]
[346187295,1734769846073,-500.0,0.00019345,2]
[346187296,1734769846082,-500.0,0.00019345,2]
[346187297,1734769846092,-500.0,0.00019345,2]
[346187298,1734769846102,-500.0,0.00019345,2]
[346187299,1734769846112,-500.0,0.00019345,2]
[346187300,1734769846122,-500.0,0.00019345,2]
[346187301,1734769846131,-560.41304822,0.00019345,2]
[346187302,1734769846140,-807.11,0.00019345,2]
[346187303,1734769846149,-1622.3,0.00019345,2]
[346187304,1734769846159,-2408.36,0.00019345,2]
[346187305,1734769846170,-1853.05,0.00019345,2]
[346187306,1734769846179,-500.0,0.00019345,2]
[346187307,1734769846188,-500.0,0.00019345,2]
[346187308,1734769846198,-599.34,0.00019345,2]
[346187309,1734769846207,-1437.49,0.00019345,2]
[346187310,1734769846216,-500.0,0.00019345,2]
[346187311,1734769846226,-500.0,0.00019345,2]
[346187312,1734769846236,-500.0,0.00019345,2]
[346187313,1734769846245,-500.0,0.00019345,2]
[346187314,1734769846255,-500.0,0.00019345,2]
[346187315,1734769846265,-500.0,0.00019345,2]
[346187316,1734769846274,-500.0,0.00019345,2]
[346187317,1734769846283,-500.0,0.00019345,2]
[346187318,1734769846293,-500.0,0.00019345,2]
[346187319,1734769846302,-500.0,0.00019345,2]
[346187320,1734769846311,-500.0,0.00019345,2]
[346187321,1734769846321,-500.0,0.00019345,2]
[346187322,1734769846330,-500.0,0.00019345,2]
[346187323,1734769846340,-500.0,0.00019345,2]
[346187324,1734769846350,-500.0,0.00019345,2]
[346187325,1734769846359,-500.0,0.00019345,2]
[346187326,1734769846369,-500.0,0.00019345,2]
[346187327,1734769846378,-2962.33,0.00019345,2]
[346187328,1734769846387,-1377.35,0.00019345,2]
[346187329,1734769846396,-4029.78,0.00019345,2]
[346187330,1734769846405,-1388.86,0.00019345,2]
[346187331,1734769846415,-1388.86,0.00019345,2]
[346187332,1734769846425,-1388.86,0.00019345,2]
[346187333,1734769846435,-1388.86,0.00019345,2]
[346187334,1734769846445,-1388.86,0.00019345,2]
[346187335,1734769846457,-1388.86,0.00019345,2]
[346187336,1734769846467,-1388.86,0.00019345,2]
[346187337,1734769846476,-1388.86,0.00019345,2]
[346187338,1734769846487,-1342.55,0.00019345,2]
[346187339,1734769846496,-306.20923891,0.00019345,2]
[346187340,1734769846506,-2000.0,0.00019346,2]
[346187341,1734769846516,-152.194252,0.00019346,2]
[346187342,1734769846525,-151.279847,0.00019346,2]
[346187343,1734769846535,-151.0,0.00019346,2]
[346187344,1734769846544,-151.351655,0.00019346,2]
[346187345,1734769846554,-151.0,0.00019346,2]
[346187346,1734769846563,-151.0,0.00019346,2]
[346187347,1734769846573,-151.0,0.00019346,2]
[346187348,1734769846583,-154.734085,0.00019346,2]
[346187349,1734769846592,-162.562606,0.00019346,2]
[346187350,1734769846602,-162.562606,0.00019346,2]
[346187351,1734769846611,-818.84367,0.00019346,2]
[346187352,1734769846620,-818.84367,0.00019346,2]
[346187353,1734769846630,-151.0,0.00019346,2]
[346187354,1734769846640,-546.544357,0.00019346,2]
[346187355,1734769846650,-546.544357,0.00019346,2]
[346187356,1734769846659,-151.0,0.00019346,2]
[346187357,1734769846668,-151.0,0.00019346,2]
[346187358,1734769846678,-8621.90081,0.00019346,2]
[346187359,1734769846687,-8621.90081,0.00019346,2]
[346187360,1734769846696,-189.290281,0.00019346,2]
[346187361,1734769846706,-189.290281,0.00019346,2]
[346187362,1734769846716,-151.0,0.00019346,2]
[346187363,1734769846726,-151.0,0.00019346,2]
[346187364,1734769846735,-152.365062,0.00019346,2]
[346187365,1734769846745,-152.365062,0.00019346,2]
[346187366,1734769846754,-208.35921,0.00019346,2]
[346187367,1734769846764,-208.35921,0.00019346,2]
[346187368,1734769846774,-151.0,0.00019346,2]
[346187369,1734769846783,-151.0,0.00019346,2]
[346187370,1734769846792,-297.223263,0.00019346,2]
[346187371,1734769846802,-297.223263,0.00019346,2]
[346187372,1734769846811,-37038.8795,0.00019346,2]
[346187373,1734769846821,-100188.5087,0.00019346,2]
[346187374,1734769846831,-1705877.6324,0.00019346,2]
[346187375,1734769846841,-4913.7801425,0.00019356,2]
[346187376,1734769846850,-500.0,0.00019373,2]
[346187377,1734769846860,-577.04172339,0.00019373,2]
[346187378,1734769846869,-506.52518326,0.00019373,2]
[346187379,1734769846879,-156.4518549,0.00019373,2]
[346187380,1734769846889,-500.0,0.00019373,2]
[346187381,1734769846898,-843.58834963,0.00019379,2]
[346187382,1734769846908,-843.58834963,0.00019425,2]
[346187383,1734769846918,-287.9718038,0.00019434,2]
[346187384,1734769846927,-1079.48,0.00019436,2]
[346187385,1734769846936,-500.0,0.00019444,2]
[346187386,1734769846946,-896.14,0.00019444,2]
[346187387,1734769846955,-500.0,0.00019444,2]
[346187388,1734769846965,-560.27,0.00019444,2]
[346187389,1734769846974,-518.18,0.00019444,2]
[346187390,1734769846985,-500.0,0.00019444,2]
[346187391,1734769846994,-748.73,0.00019444,2]
[346187392,1734769847004,-771.79,0.00019444,2]
[346187393,1734769847013,-500.0,0.00019444,2]
[346187394,1734769847022,-500.0,0.00019444,2]
[346187395,1734769847033,-1095.4,0.00019444,2]
[346187396,1734769847046,-500.0,0.00019444,2]
[346187397,1734769847056,-1543.7,0.00019444,2]
[346187398,1734769847065,-684.8,0.00019444,2]
[346187399,1734769847075,-836.87,0.00019444,2]
[346187400,1734769847084,-500.0,0.00019444,2]
[346187401,1734769847093,-500.0,0.00019444,2]
[346187402,1734769847102,-500.0,0.00019444,2]
[346187403,1734769847112,-934.15,0.00019444,2]
[346187404,1734769847122,-500.0,0.00019444,2]
[346187405,1734769847131,-719.72,0.00019444,2]
[346187406,1734769847141,-506.19,0.00019444,2]
[346187407,1734769847150,-521.06,0.00019444,2]
[346187408,1734769847159,-832.43,0.00019444,2]
[346187409,1734769847168,-671.61,0.00019444,2]
[346187410,1734769847178,-653.84,0.00019444,2]
[346187411,1734769847188,-880.14,0.00019444,2]
[346187412,1734769847197,-692.41,0.00019444,2]
[346187413,1734769847207,-1101.22,0.00019444,2]
[346187414,1734769847216,-1000.59,0.00019444,2]
[346187415,1734769847227,-657.85,0.00019444,2]
[346187416,1734769847236,-500.0,0.00019444,2]
[346187417,1734769847245,-500.0,0.00019444,2]
[346187418,1734769847255,-774.6,0.00019444,2]
[346187419,1734769847264,-500.0,0.00019444,2]
[346187420,1734769847274,-500.0,0.00019444,2]
[346187421,1734769847283,-954.05,0.00019444,2]
[346187422,1734769847294,-1138.7,0.00019444,2]
[346187423,1734769847304,-500.0,0.00019444,2]
[346187424,1734769847315,-500.0,0.00019444,2]
[346187425,1734769847324,-929.19,0.00019444,2]
[346187426,1734769847334,-754.06,0.00019444,2]
[346187427,1734769847344,-500.0,0.00019444,2]
[346187428,1734769847354,-673.28,0.00019444,2]
[346187429,1734769847364,-581.25,0.00019444,2]
[346187430,1734769847375,-675.51,0.00019444,2]
[346187431,1734769847384,-1127.19,0.00019444,2]
[346187432,1734769847394,-500.0,0.00019444,2]
[346187433,1734769847404,-1260.74,0.00019444,2]
[346187434,1734769847413,-500.0,0.00019444,2]
[346187435,1734769847423,-503.55,0.00019444,2]
[346187436,1734769847432,-1143.47,0.00019444,2]
[346187437,1734769847442,-829.64,0.00019444,2]
[346187438,1734769847452,-500.0,0.00019444,2]
[346187439,1734769847461,-500.0,0.00019444,2]
[346187440,1734769847471,-1388.86,0.00019444,2]
[346187441,1734769847481,-1388.86,0.00019444,2]
[346187442,1734769847493,-1388.86,0.00019444,2]
[346187443,1734769847502,-1388.86,0.00019444,2]
[346187444,1734769847512,-1388.97088163,0.00019444,2]
[346187445,1734769847522,-500.0,0.00019444,2]
[346187446,1734769847533,-500.0,0.00019444,2]
[346187447,1734769847544,-500.0,0.00019444,2]
[346187448,1734769847554,-766.03,0.00019444,2]
[346187449,1734769847563,-551.84,0.00019444,2]
[346187450,1734769847573,-500.0,0.00019444,2]
[346187451,1734769847583,-508.5,0.00019444,2]
[346187452,1734769847592,-749.47,0.00019444,2]
[346187453,1734769847602,-500.0,0.00019444,2]
[346187454,1734769847612,-1147.83,0.00019444,2]
[346187455,1734769847622,-959.63,0.00019444,2]
[346187456,1734769847631,-895.71,0.00019444,2]
[346187457,1734769847642,-869.86,0.00019444,2]
[346187458,1734769847652,-1036.93,0.00019444,2]
[346187459,1734769847662,-1138.3,0.00019444,2]
[346187460,1734769847672,-500.0,0.00019444,2]
[346187461,1734769847682,-500.0,0.00019444,2]
[346187462,1734769847693,-500.0,0.00019444,2]
[346187463,1734769847703,-1010.11,0.00019444,2]
[346187464,1734769847713,-717.94,0.00019444,2]
[346187465,1734769847723,-866.44,0.00019444,2]
[346187466,1734769847732,-500.0,0.00019445,2]
[346187467,1734769847743,-393.16191837,0.00019445,2]
[346187468,1734769847754,-260.83297247,0.00019446,2]
[346187469,1734769847763,-500.0,0.00019446,2]
[346187470,1734769847773,-500.0,0.00019446,2]
[346187471,1734769847792,-500.0,0.00019446,2]
[346187472,1734769847806,-500.0,0.00019446,2]
[346187473,1734769847816,-500.0,0.00019446,2]
[346187474,1734769847826,-591.47485643,0.00019446,2]
[346187475,1734769847836,-500.0,0.00019446,2]
[346187476,1734769847846,-500.0,0.00019446,2]
[346187477,1734769847856,-500.0,0.00019446,2]
[346187478,1734769847866,-500.0,0.00019446,2]
[346187479,1734769847876,-500.0,0.00019446,2]
[346187480,1734769847886,-500.0,0.00019446,2]